fUST/lending_fUST_20240919
["ID","MTS","AMOUNT","RATE_DAILY","PERIOD"]
[338594798,1726753838800,-500.0,0.00016437,2]
[338594799,1726753838810,-298.62128832,0.00016438,2]
[338594800,1726753838819,-500.0,0.00016438,2]
[338594801,1726753838830,-500.0,0.00016438,2]
[338594802,1726753838843,-500.0,0.00016438,2]
[338594803,1726753838853,-500.0,0.00016438,2]
[338594804,1726753838863,-500.0,0.00016438,2]
[338594805,1726753838874,-523.41655012,0.00016438,2]
[338594806,1726753838885,-500.0,0.00016438,2]
[338594807,1726753838895,-500.0,0.00016438,2]
[338594808,1726753838906,-500.0,0.00016438,2]
[338594809,1726753838916,-500.0,0.00016438,2]
[338594810,1726753838925,-500.0,0.00016438,2]
[338594811,1726753838935,-500.0,0.00016438,2]
[338594812,1726753838945,-584.91,0.00016438,2]
[338594813,1726753838954,-500.0,0.00016438,2]
[338594814,1726753838963,-500.0,0.00016438,2]
[338594815,1726753838973,-500.0,0.00016438,2]
[338594816,1726753838983,-500.0,0.00016438,2]
[338594817,1726753838993,-500.0,0.00016438,2]
[338594818,1726753839003,-724.79,0.00016438,2]
[338594819,1726753839012,-500.0,0.00016438,2]
[338594820,1726753839022,-500.0,0.00016438,2]
[338594821,1726753839032,-500.0,0.00016438,2]
[338594822,1726753839042,-500.0,0.00016438,2]
[338594823,1726753839052,-500.0,0.00016438,2]
[338594824,1726753839061,-500.0,0.00016438,2]
[338594825,1726753839071,-549.48,0.00016438,2]
[338594826,1726753839080,-500.0,0.00016438,2]
[338594827,1726753839090,-929.97,0.00016438,2]
[338594828,1726753839099,-500.0,0.00016438,2]
[338594829,1726753839109,-500.0,0.00016438,2]
[338594830,1726753839120,-500.0,0.00016473,2]
[338594831,1726753839130,-2918.88545628,0.00016691,2]
[338594832,1726753839141,-972.96181876,0.00016692,2]
[338594833,1726753839150,-2148.81871059,0.000167,2]
[338594834,1726753839160,-972.96181876,0.00016701,2]
[338594835,1726753839169,-409.82310393,0.00016711,2]
[338594836,1726753839179,-12066.7732978,0.00016711,2]
[338594837,1726753839188,-151.0,0.00016712,2]
[338594838,1726753839198,-500.0,0.00016712,2]
[338594839,1726753839207,-500.0,0.00016712,2]
[338594840,1726753839216,-500.0,0.00016712,2]
[338594841,1726753839227,-564.40204833,0.00016712,2]
[338594842,1726753839237,-500.0,0.00016712,2]
[338594843,1726753839247,-500.0,0.00016712,2]
[338594844,1726753839256,-500.0,0.00016712,2]
[338594845,1726753839266,-584.91,0.00016712,2]
[338594846,1726753839275,-500.0,0.00016712,2]
[338594847,1726753839284,-500.0,0.00016712,2]
[338594848,1726753839294,-500.0,0.00016712,2]
[338594849,1726753839304,-500.0,0.00016712,2]
[338594850,1726753839313,-724.79,0.00016712,2]
[338594851,1726753839323,-500.0,0.00016712,2]
[338594852,1726753839333,-500.0,0.00016712,2]
[338594853,1726753839342,-484.77383694,0.00016712,2]
[338594854,1726753839352,-500.0,0.00016712,2]
[338594855,1726753839363,-500.0,0.00016712,2]
[338594856,1726753839373,-500.0,0.00016712,2]
[338594857,1726753839382,-549.48,0.00016712,2]
[338594858,1726753839393,-500.0,0.00016712,2]
[338594859,1726753839403,-929.97,0.00016712,2]
[338594860,1726753839412,-500.0,0.00016712,2]
[338594861,1726753839422,-500.0,0.00016773,2]
[338594862,1726753839432,-500.0,0.00016773,2]
[338594863,1726753839442,-513.72926842,0.00016773,2]
[338594864,1726753839452,-538.89222013,0.00016773,2]
[338594865,1726753839462,-501.15771748,0.00016773,2]
[338594866,1726753839472,-500.0,0.00016773,2]
[338594867,1726753839481,-500.88481706,0.00016773,2]
[338594868,1726753839491,-501.50815981,0.00016773,2]
[338594869,1726753839500,-500.0,0.00016773,2]
[338594870,1726753839510,-160.0,0.00016985,2]
[338594871,1726753839520,-160.0,0.00016985,2]
[338594872,1726753839530,-151.0,0.00016986,2]
[338594873,1726753839540,-319.64203003,0.00016986,2]
[338594874,1726753839550,-500.0,0.00016986,2]
[338594875,1726753839560,-500.0,0.00016986,2]
[338594876,1726753839570,-151.0,0.00016986,2]
[338594877,1726753839580,-151.0,0.00016986,2]
[338594878,1726753839590,-485.24,0.00016986,2]
[338594879,1726753839600,-500.0,0.00016986,2]
[338594880,1726753839610,-151.0,0.00016986,2]
[338594881,1726753839619,-584.91,0.00016986,2]
[338594882,1726753839628,-500.0,0.00016986,2]
[338594884,1726753839639,-500.0,0.00016986,2]
[338594885,1726753839649,-500.0,0.00016986,2]
[338594886,1726753839659,-500.0,0.00016986,2]
[338594887,1726753839669,-724.79,0.00016986,2]
[338594888,1726753839679,-584.13506093,0.00016986,2]
[338594889,1726753839690,-500.0,0.00016986,2]
[338594890,1726753839700,-549.48,0.00016986,2]
[338594891,1726753839710,-209.35262595,0.00016986,2]
[338594892,1726753839720,-929.97,0.00016986,2]
[338594893,1726753839730,-617.18406413,0.00016986,2]
[338594894,1726753839740,-151.0,0.00016986,2]
[338594895,1726753839752,-151.0,0.00016986,2]
[338594896,1726753839762,-1422.291299,0.00016986,2]
[338594897,1726753839772,-1422.291299,0.00016986,2]
[338594898,1726753839782,-350.032893,0.00016986,2]
[338594899,1726753839791,-350.032893,0.00016986,2]
[338594900,1726753839801,-151.0,0.00016986,2]
[338594901,1726753839810,-224.350802,0.00016986,2]
[338594902,1726753839820,-224.350802,0.00016986,2]
[338594903,1726753839831,-2914.85,0.00017,2]
[338594904,1726753839841,-214.0,0.00017,7]
[338594905,1726753839851,-5393.31199145,0.00017178,2]
[338594906,1726753839860,-151.0,0.0001726,2]
[338594907,1726753839870,-151.0,0.0001726,2]
[338594908,1726753839880,-318.848422,0.0001726,2]
[338594909,1726753839892,-318.848422,0.0001726,2]
[338594910,1726753839901,-151.0,0.0001726,2]
[338594911,1726753839910,-500.0,0.0001726,2]
[338594912,1726753839920,-192.00139395,0.0001726,2]
[338594913,1726753839929,-151.0,0.0001726,2]
[338594914,1726753839939,-500.0,0.0001726,2]
[338594915,1726753839948,-151.0,0.0001726,2]
[338594916,1726753839957,-584.91,0.0001726,2]
[338594917,1726753839967,-500.0,0.0001726,2]
[338594918,1726753839977,-500.0,0.0001726,2]
[338594919,1726753839987,-500.0,0.0001726,2]
[338594921,1726753839998,-512.57063075,0.0001726,2]
[338594922,1726753840009,-724.79,0.0001726,2]
[338594923,1726753840019,-500.0,0.0001726,2]
[338594924,1726753840029,-549.48,0.0001726,2]
[338594925,1726753840039,-929.97,0.0001726,2]
[338594926,1726753840049,-151.0,0.0001726,2]
[338594927,1726753840059,-151.0,0.0001726,2]
[338594928,1726753840069,-1422.291299,0.0001726,2]
[338594929,1726753840079,-1422.291299,0.0001726,2]
[338594930,1726753840089,-350.032893,0.0001726,2]
[338594932,1726753840098,-350.032893,0.0001726,2]
[338594933,1726753840107,-151.0,0.0001726,2]
[338594934,1726753840117,-189.979848,0.0001726,2]
[338594935,1726753840126,-224.350802,0.0001726,2]
[338594937,1726753840137,-224.350802,0.0001726,2]
[338594938,1726753840146,-500.0,0.00017273,2]
[338594939,1726753840156,-500.0,0.00017273,2]
[338594941,1726753840165,-500.0,0.00017273,2]
[338594943,1726753840175,-376.33625533,0.00017273,2]
[338594945,1726753840185,-150.0,0.00017341,2]
[338594947,1726753840194,-524.0,0.00017341,2]
[338594949,1726753840204,-1216.0,0.00017341,2]
[338594952,1726753840216,-48045.31737324,0.00017341,2]
[338594964,1726753840271,566.95,0.00021999,60]
[338594978,1726753840378,1031.01,0.00021999,60]
[338594984,1726753840436,857.8,0.00021999,60]
[338594991,1726753840485,566.95,0.00021999,60]
[338594996,1726753840537,1031.01,0.00021999,60]
[338595002,1726753840594,857.8,0.00021999,60]
[338595008,1726753840645,566.95,0.00021999,60]
[338595014,1726753840694,1031.01,0.00021999,60]
[338595022,1726753840756,857.8,0.00021999,60]
[338595028,1726753840805,566.95,0.00021999,60]
[338595031,1726753840854,1031.1733916,0.00021999,60]
[338595032,1726753840996,566.95,0.00021999,60]
[338595033,1726753841058,857.8,0.00021999,60]
[338595034,1726753841113,566.95,0.00021999,60]
[338595035,1726753841165,857.8,0.00021999,60]
[338595036,1726753841213,566.95,0.00021999,60]
[338595037,1726753841231,-7798.68262676,0.00017341,2]
[338595038,1726753841240,-169.527,0.00017341,2]
[338595039,1726753841250,-150.0,0.00017341,2]
[338595040,1726753841260,-500.68393457,0.00017369,2]
[338595041,1726753841269,-500.0,0.00017369,2]
[338595042,1726753841279,-500.0,0.00017371,2]
[338595043,1726753841289,-500.0,0.00017371,2]
[338595044,1726753841298,-500.0,0.00017371,2]
[338595045,1726753841308,-151.0,0.00017534,2]
[338595046,1726753841317,-500.0,0.00017534,2]
[338595047,1726753841327,-265.719872,0.00017534,2]
[338595048,1726753841336,-500.0,0.00017534,2]
[338595049,1726753841346,-584.91,0.00017534,2]
[338595050,1726753841355,-500.0,0.00017534,2]
[338595051,1726753841366,-500.0,0.00017534,2]
[338595052,1726753841375,-500.0,0.00017534,2]
[338595053,1726753841385,-724.79,0.00017534,2]
[338595054,1726753841399,-500.0,0.00017534,2]
[338595055,1726753841408,-549.48,0.00017534,2]
[338595056,1726753841417,-929.97,0.00017534,2]
[338595057,1726753841427,-1422.291299,0.00017534,2]
[338595058,1726753841436,-1422.291299,0.00017534,2]
[338595059,1726753841445,-350.032893,0.00017534,2]
[338595060,1726753841455,-350.032893,0.00017534,2]
[338595061,1726753841464,-151.0,0.00017534,2]
[338595062,1726753841475,-224.350802,0.00017534,2]
[338595063,1726753841484,-224.350802,0.00017534,2]
[338595064,1726753841494,-151.0,0.00017534,2]
[338595065,1726753841504,-151.0,0.00017534,2]
[338595066,1726753841513,-151.0,0.00017534,2]
[338595067,1726753841523,-151.0,0.00017534,2]
[338595068,1726753841533,-151.0,0.00017534,2]
[338595069,1726753841543,-151.0,0.00017534,2]
[338595070,1726753841552,-151.0,0.00017534,2]
[338595071,1726753841562,-151.0,0.00017534,2]
[338595072,1726753841572,-151.0,0.00017534,2]
[338595073,1726753841581,-151.0,0.00017534,2]
[338595074,1726753841590,-311.407855,0.00017534,2]
[338595075,1726753841599,-151.0,0.00017534,2]
[338595076,1726753841608,-1850.416398,0.00017534,2]
[338595077,1726753841618,-311.407855,0.00017534,2]
[338595078,1726753841627,-1850.416398,0.00017534,2]
[338595079,1726753841637,-151.0,0.00017534,2]
[338595080,1726753841647,-151.0,0.00017534,2]
[338595081,1726753841656,-196.6,0.00017568,2]
[338595082,1726753841666,-500.0,0.0001758,2]
[338595083,1726753841675,-500.0,0.0001758,2]
[338595084,1726753841685,-160.90163875,0.0001758,2]
[338595085,1726753841694,-301.7465964,0.0001758,2]
[338595086,1726753841704,-608.83099142,0.000176,2]
[338595087,1726753841713,-306.6786405,0.00017616,2]
[338595088,1726753841723,-500.0,0.00017618,2]
[338595089,1726753841733,-500.0,0.00017618,2]
[338595090,1726753841742,-318.848422,0.00017685,2]
[338595091,1726753841751,-318.848422,0.00017685,2]
[338595092,1726753841761,-151.0,0.00017685,2]
[338595093,1726753841771,-151.0,0.00017685,2]
[338595094,1726753841780,-151.0,0.00017685,2]
[338595095,1726753841790,-196.6,0.00017789,2]
[338595096,1726753841799,-160.58621947,0.000178,3]
[338595097,1726753841808,-151.0,0.00017808,2]
[338595098,1726753841818,-151.0,0.00017808,2]
[338595099,1726753841830,-508.54516222,0.00017808,2]
[338595100,1726753841840,-500.0,0.00017808,2]
[338595101,1726753841849,-584.91,0.00017808,2]
[338595102,1726753841859,-500.0,0.00017808,2]
[338595103,1726753841868,-500.0,0.00017808,2]
[338595104,1726753841877,-500.0,0.00017808,2]
[338595105,1726753841890,-724.79,0.00017808,2]
[338595106,1726753841904,-500.0,0.00017808,2]
[338595107,1726753841913,-549.48,0.00017808,2]
[338595108,1726753841923,-929.97,0.00017808,2]
[338595109,1726753841932,-151.0,0.00017808,2]
[338595110,1726753841942,-151.0,0.00017808,2]
[338595111,1726753841952,-1422.291299,0.00017808,2]
[338595112,1726753841961,-1422.291299,0.00017808,2]
[338595113,1726753841970,-350.032893,0.00017808,2]
[338595114,1726753841979,-350.032893,0.00017808,2]
[338595115,1726753841989,-151.0,0.00017808,2]
[338595116,1726753841998,-151.0,0.00017808,2]
[338595117,1726753842008,-151.0,0.00017808,2]
[338595118,1726753842017,-258.713938,0.00017808,2]
[338595119,1726753842027,-151.0,0.00017808,2]
[338595120,1726753842036,-151.0,0.00017808,2]
[338595121,1726753842045,-151.0,0.00017808,2]
[338595122,1726753842055,-151.0,0.00017808,2]
[338595123,1726753842065,-151.0,0.00017808,2]
[338595124,1726753842075,-278.062464,0.00017808,2]
[338595125,1726753842084,-530.38401,0.00017808,2]
[338595126,1726753842093,-530.38401,0.00017808,2]
[338595127,1726753842106,-151.0,0.00017808,2]
[338595128,1726753842115,-1183.625602,0.00017808,2]
[338595129,1726753842125,-1183.625602,0.00017808,2]
[338595130,1726753842137,-151.0,0.00017808,2]
[338595131,1726753842146,-694.520432,0.00017808,2]
[338595132,1726753842156,-694.520432,0.00017808,2]
[338595133,1726753842165,-151.0,0.00017808,2]
[338595134,1726753842175,-500.0,0.00017808,2]
[338595135,1726753842185,-1000.0,0.00017842,2]
[338595136,1726753842194,-420.0,0.00017942,2]
[338595137,1726753842204,-9936.88930711,0.00017987,2]
[338595138,1726753842215,-7263.64716659,0.00018,10]
[338595139,1726753842225,-224.350802,0.00018,2]
[338595140,1726753842234,-224.350802,0.00018,2]
[338595141,1726753842244,-3000.0,0.00018,2]
[338595142,1726753842253,-1000.0,0.00018,2]
[338595143,1726753842263,-151.0,0.0001801,2]
[338595144,1726753842272,-232.858585,0.0001801,2]
[338595145,1726753842283,-151.0,0.0001801,2]
[338595146,1726753842292,-151.0,0.0001801,2]
[338595147,1726753842302,-3000.0,0.0001801,2]
[338595148,1726753842311,-151.0,0.0001801,2]
[338595149,1726753842323,-151.0,0.0001801,2]
[338595150,1726753842334,-899.74783,0.0001801,2]
[338595151,1726753842343,-899.74783,0.0001801,2]
[338595152,1726753842352,-414.798691,0.0001801,2]
[338595153,1726753842362,-414.798691,0.0001801,2]
[338595154,1726753842371,-180.953993,0.0001801,2]
[338595155,1726753842381,-151.0,0.0001801,2]
[338595156,1726753842392,-180.953993,0.0001801,2]
[338595157,1726753842402,-2195.51247,0.0001801,2]
[338595158,1726753842412,-2195.51247,0.0001801,2]
[338595159,1726753842421,-1534.671252,0.0001801,2]
[338595160,1726753842431,-1534.671252,0.0001801,2]
[338595161,1726753842440,-196.6,0.0001801,2]
[338595162,1726753842449,-3276.575825,0.0001801,2]
[338595163,1726753842458,-3276.575825,0.0001801,2]
[338595164,1726753842468,-3000.0,0.0001802,2]
[338595165,1726753842478,-3000.0,0.0001803,2]
[338595166,1726753842488,-3000.0,0.0001804,2]
[338595167,1726753842499,-3000.0,0.0001805,2]
[338595168,1726753842510,-420.0,0.00018059,2]
[338595169,1726753842520,-3000.0,0.0001806,2]
[338595170,1726753842529,-3000.0,0.0001807,2]
[338595171,1726753842539,-500.0,0.00018073,2]
[338595172,1726753842548,-3000.0,0.0001808,2]
[338595173,1726753842558,-318.848422,0.00018082,2]
[338595174,1726753842567,-318.848422,0.00018082,2]
[338595175,1726753842577,-500.0,0.00018082,2]
[338595176,1726753842587,-584.91,0.00018082,2]
[338595177,1726753842596,-500.0,0.00018082,2]
[338595178,1726753842605,-500.0,0.00018082,2]
[338595179,1726753842615,-500.0,0.00018082,2]
[338595180,1726753842624,-724.79,0.00018082,2]
[338595181,1726753842633,-500.0,0.00018082,2]
[338595182,1726753842647,-549.48,0.00018082,2]
[338595183,1726753842656,-929.97,0.00018082,2]
[338595184,1726753842666,-151.0,0.00018082,2]
[338595185,1726753842676,-202.30482,0.00018082,2]
[338595186,1726753842687,-1422.291299,0.00018082,2]
[338595187,1726753842696,-1422.291299,0.00018082,2]
[338595188,1726753842706,-350.032893,0.00018082,2]
[338595189,1726753842716,-350.032893,0.00018082,2]
[338595190,1726753842726,-181.553746,0.00018082,2]
[338595191,1726753842735,-151.0,0.00018082,2]
[338595192,1726753842745,-151.0,0.00018082,2]
[338595193,1726753842754,-311.407855,0.00018082,2]
[338595194,1726753842765,-151.0,0.00018082,2]
[338595195,1726753842774,-1850.416398,0.00018082,2]
[338595196,1726753842784,-311.407855,0.00018082,2]
[338595197,1726753842796,-1850.416398,0.00018082,2]
[338595198,1726753842807,-151.0,0.00018082,2]
[338595199,1726753842819,-151.0,0.00018082,2]
[338595200,1726753842830,-221.038297,0.00018082,2]
[338595201,1726753842841,-221.038297,0.00018082,2]
[338595202,1726753842852,-534.004691,0.00018082,2]
[338595203,1726753842862,-534.004691,0.00018082,2]
[338595204,1726753842871,-614.268977,0.00018082,2]
[338595205,1726753842881,-614.268977,0.00018082,2]
[338595206,1726753842894,-151.0,0.00018082,2]
[338595207,1726753842904,-3000.0,0.0001809,2]
[338595208,1726753842914,-3000.0,0.000181,2]
[338595209,1726753842924,-466.47986756,0.00018109,2]
[338595210,1726753842933,-500.0,0.00018109,2]
[338595211,1726753842942,-218.08809526,0.00018109,2]
[338595212,1726753842952,-500.0,0.00018109,2]
[338595213,1726753842961,-500.0,0.00018109,2]
[338595214,1726753842970,-500.0,0.00018109,2]
[338595215,1726753842980,-500.0,0.00018109,2]
[338595216,1726753842990,-500.0,0.00018109,2]
[338595217,1726753843000,-620.97868172,0.00018109,2]
[338595218,1726753843009,-406.09341925,0.00018109,2]
[338595219,1726753843018,-500.0,0.00018109,2]
[338595220,1726753843027,-500.0,0.00018109,2]
[338595221,1726753843037,-500.0,0.00018109,2]
[338595223,1726753843047,-441.33329302,0.00018109,2]
[338595224,1726753843056,-500.0,0.00018109,2]
[338595226,1726753843066,-3000.0,0.0001811,2]
[338595227,1726753843075,-3000.0,0.0001812,2]
[338595228,1726753843084,-3000.0,0.0001813,2]
[338595229,1726753843094,-3000.0,0.0001814,2]
[338595230,1726753843103,-1000.0,0.00018142,2]
[338595231,1726753843112,-501.05784197,0.00018142,2]
[338595232,1726753843122,-500.0,0.00018142,2]
[338595233,1726753843131,-1000.0,0.00018142,2]
[338595234,1726753843142,-3000.0,0.0001815,2]
[338595235,1726753843152,-1540.49350416,0.0001816,2]
[338595245,1726753843375,857.8,0.00021999,60]
[338595246,1726753843397,-1459.50649584,0.0001816,2]
[338595247,1726753843406,-3000.0,0.0001817,2]
[338595248,1726753843416,-1850.42104061,0.0001818,2]
[338595249,1726753843464,566.95,0.00021999,60]
[338595251,1726753843514,857.8,0.00021999,60]
[338595252,1726753843565,566.95,0.00021999,60]
[338595253,1726753843617,857.8,0.00021999,60]
[338595254,1726753843673,566.95,0.00021999,60]
[338595255,1726753843730,857.8,0.00021999,60]
[338595256,1726753843780,566.95,0.00021999,60]
[338595259,1726753843833,566.95,0.00021999,60]
[338595262,1726753843883,857.8,0.00021999,60]
[338595263,1726753843944,566.95,0.00021999,60]
[338595264,1726753843992,857.8,0.00021999,60]
[338595265,1726753844044,566.95,0.00021999,60]
[338595266,1726753844091,857.8,0.00021999,60]
[338595267,1726753844152,566.95,0.00021999,60]
[338595268,1726753844201,857.8,0.00021999,60]
[338595269,1726753844258,651.14,0.00021999,60]
[338595270,1726753844314,566.95,0.00021999,60]
[338595271,1726753844372,857.8,0.00021999,60]
[338595272,1726753844433,651.14,0.00021999,60]
[338595273,1726753844487,566.95,0.00021999,60]
[338595274,1726753844536,857.98129478,0.00021999,60]
[338595275,1726753844715,651.14,0.00021999,60]
[338595276,1726753844773,566.95,0.00021999,60]
[338595277,1726753844827,651.14,0.00021999,60]
[338595278,1726753844852,-27.69675159,0.00017341,2]
[338595279,1726753844902,566.95,0.00021999,60]
[338595280,1726753844960,651.14,0.00021999,60]
[338595281,1726753845020,566.95,0.00021999,60]
[338595282,1726753845078,566.95,0.00021999,60]
[338595283,1726753845129,651.14,0.00021999,60]
[338595284,1726753845185,566.95,0.00021999,60]
[338595285,1726753845232,651.14,0.00021999,60]
[338595286,1726753845292,566.95,0.00021999,60]
[338595287,1726753845340,651.14,0.00021999,60]
[338595288,1726753845397,567.14254808,0.00021999,60]
[338595289,1726753845445,651.14,0.00021999,60]
[338595290,1726753845508,651.14,0.00021999,60]
[338595291,1726753845632,651.14,0.00021999,60]
[338595292,1726753845918,651.14,0.00021999,60]
[338595307,1726753846219,651.14,0.00021999,60]
[338595338,1726753846474,651.14,0.00021999,60]
[338595359,1726753846683,-125.02824841,0.00017341,2]
[338595360,1726753846694,-1149.57895939,0.0001818,2]
[338595361,1726753846705,-3000.0,0.0001819,2]
[338595362,1726753846714,-151.0,0.000182,2]
[338595363,1726753846726,-151.0,0.000182,2]
[338595364,1726753846736,-151.0,0.000182,2]
[338595365,1726753846745,-1580.9080416,0.000182,2]
[338595367,1726753846804,651.14,0.00021999,60]
[338595368,1726753847000,651.14,0.00021999,60]
[338595369,1726753847358,651.14,0.00021999,60]
[338595370,1726753847615,651.14,0.00021999,60]
[338595371,1726753847890,651.14,0.00021999,60]
[338595372,1726753848147,651.14,0.00021999,60]
[338595373,1726753848403,651.14,0.00021999,60]
[338595374,1726753848702,651.14,0.00021999,60]
[338595375,1726753848961,651.14,0.00021999,60]
[338595376,1726753850162,651.24603974,0.00021999,60]
[338595377,1726753850651,759.27,0.00021999,60]
[338595378,1726753850954,759.27,0.00021999,60]
[338595379,1726753851234,759.27,0.00021999,60]
[338595380,1726753851517,759.27,0.00021999,60]
[338595381,1726753851804,759.27,0.00021999,60]
[338595382,1726753852068,759.27,0.00021999,60]
[338595383,1726753852137,500.0,0.00021999,60]
[338595384,1726753852421,500.0,0.00021999,60]
[338595385,1726753852477,759.27,0.00021999,60]
[338595386,1726753852700,759.27,0.00021999,60]
[338595387,1726753852754,500.0,0.00021999,60]
[338595388,1726753852981,759.27,0.00021999,60]
[338595389,1726753853041,500.0,0.00021999,60]
[338595390,1726753853574,759.27,0.00021999,60]
[338595391,1726753853807,500.0,0.00021999,60]
[338595392,1726753853880,759.27,0.00021999,60]
[338595393,1726753853940,500.0,0.00021999,60]
[338595394,1726753854009,759.27,0.00021999,60]
[338595395,1726753854063,500.0,0.00021999,60]
[338595396,1726753854127,759.27,0.00021999,60]
[338595397,1726753854248,500.0,0.00021999,60]
[338595398,1726753854410,759.27,0.00021999,60]
[338595399,1726753854522,500.0,0.00021999,60]
[338595400,1726753854700,759.27,0.00021999,60]
[338595401,1726753854784,500.0,0.00021999,60]
[338595402,1726753854955,759.27,0.00021999,60]
[338595403,1726753855261,759.27,0.00021999,60]
[338595404,1726753855520,500.0,0.00021999,60]
[338595405,1726753855576,759.27,0.00021999,60]
[338595406,1726753855726,500.0,0.00021999,60]
[338595407,1726753855887,759.27,0.00021999,60]
[338595408,1726753856043,500.0,0.00021999,60]
[338595409,1726753856231,759.27,0.00021999,60]
[338595410,1726753856480,500.0,0.00021999,60]
[338595411,1726753856535,759.27,0.00021999,60]
[338595412,1726753856773,500.0,0.00021999,60]
[338595413,1726753856834,759.27,0.00021999,60]
[338595414,1726753857035,500.0,0.00021999,60]
[338595415,1726753857100,759.27,0.00021999,60]
[338595416,1726753857325,500.0,0.00021999,60]
[338595417,1726753857381,759.39238538,0.00021999,60]
[338595418,1726753857623,500.0,0.00021999,60]
[338595419,1726753857929,500.0,0.00021999,60]
[338595420,1726753858217,500.0,0.00021999,60]
[338595421,1726753858469,443.658157,0.00021999,60]
[338595422,1726753859407,500.0,0.00021999,60]
[338595423,1726753859668,500.0,0.00021999,60]
[338595424,1726753860457,500.0,0.00021999,60]
[338595425,1726753860537,500.0,0.00021999,60]
[338595426,1726753860731,336.38993281,0.00021999,60]
[338595427,1726753860793,159.36104134,0.00021999,60]
[338595428,1726753860850,500.0,0.00021999,60]
[338595429,1726753861085,500.0,0.00021999,60]
[338595430,1726753861389,500.0,0.00021999,60]
[338595431,1726753861730,500.0,0.00021999,60]
[338595432,1726753861945,500.0,0.00021999,60]
[338595433,1726753862225,500.0,0.00021999,60]
[338595434,1726753862509,500.0,0.00021999,60]
[338595435,1726753862848,500.0,0.00021999,60]
[338595436,1726753862905,500.0,0.00021999,60]
[338595437,1726753863134,473.66299304,0.00021999,60]
[338595438,1726753863252,500.0,0.00021999,60]
[338595439,1726753863519,500.0,0.00021999,60]
[338595440,1726753863708,500.0,0.00021999,60]
[338595441,1726753864004,500.0,0.00021999,60]
[338595442,1726753864063,500.0,0.00021999,60]
[338595443,1726753864128,500.0,0.00021999,60]
[338595444,1726753864257,503.74445727,0.00021999,60]
[338595445,1726753864414,500.0,0.00021999,60]
[338595446,1726753864929,500.0,0.00021999,60]
[338595447,1726753865032,500.0,0.00021999,60]
[338595448,1726753865200,500.0,0.00021999,60]
[338595449,1726753865299,500.0,0.00021999,60]
[338595450,1726753865556,500.0,0.00021999,60]
[338595451,1726753865610,500.0,0.00021999,60]
[338595452,1726753865881,500.0,0.00021999,60]
[338595453,1726753865951,500.0,0.00021999,60]
[338595454,1726753866140,500.0,0.00021999,60]
[338595455,1726753866208,500.0,0.00021999,60]
[338595456,1726753866416,500.0,0.00021999,60]
[338595457,1726753866463,500.0,0.00021999,60]